lending/lending_fUSD_20250719
["ID","MTS","AMOUNT","RATE_DAILY","PERIOD"]
[373247394,1752922277965,-813.79,0.00019835,2]
[373247395,1752922277975,-480.0,0.00019835,2]
[373247396,1752922277985,-354.34,0.00019835,2]
[373247397,1752922277995,-480.0,0.00019835,2]
[373247398,1752922278006,-480.0,0.00019835,2]
[373247399,1752922278016,-3431.57,0.00019835,2]
[373247400,1752922278026,-1310.77,0.00019835,2]
[373247401,1752922278037,-858.48,0.00019835,2]
[373247402,1752922278051,-480.0,0.00019835,2]
[373247403,1752922278061,-480.0,0.00019835,2]
[373247404,1752922278071,-480.0,0.00019835,2]
[373247405,1752922278084,-480.0,0.00019835,2]
[373247406,1752922278095,-560.18,0.00019835,2]
[373247407,1752922278106,-497.93,0.00019835,2]
[373247408,1752922278116,-1367.34,0.00019835,2]
[373247409,1752922278127,-1524.22,0.00019835,2]
[373247410,1752922278137,-480.0,0.00019835,2]
[373247411,1752922278148,-480.0,0.00019835,2]
[373247412,1752922278425,-480.0,0.00019835,2]
[373247413,1752922278439,-5259.12,0.00019835,2]
[373247414,1752922278449,-480.0,0.00019835,2]
[373247415,1752922278458,-480.0,0.00019835,2]
[373247416,1752922278467,-1500.0,0.00019845,2]
[373247417,1752922278477,-695.84787119,0.0001988,2]
[373247418,1752922278487,-4000.0,0.000199,7]
[373247419,1752922278497,-5391.39339653,0.00019908,2]
[373247420,1752922278507,-53109.54756108,0.00019918,2]
[373247421,1752922278516,-150.0,0.00019918,4]
[373247422,1752922278526,-150.0,0.00019918,4]
[373247423,1752922278536,-155.62930471,0.00019918,4]
[373247424,1752922278546,-150.00000001,0.00019918,4]
[373247425,1752922278555,-150.0,0.00019918,4]
[373247426,1752922278566,-409.38131849,0.00019943,2]
[373247427,1752922278576,-437.0405703,0.00019943,2]
[373247428,1752922278585,-480.0,0.00019943,2]
[373247429,1752922278595,-440.0,0.00019943,2]
[373247430,1752922278605,-735.7,0.00019943,2]
[373247431,1752922278615,-480.0,0.00019943,2]
[373247432,1752922278625,-480.0,0.00019943,2]
[373247433,1752922278638,-420.0,0.00019943,2]
[373247434,1752922278656,-480.0,0.00019943,2]
[373247435,1752922278666,-3279.57,0.00019943,2]
[373247436,1752922278676,-480.0,0.00019943,2]
[373247437,1752922278687,-480.0,0.00019943,2]
[373247438,1752922278697,-497.06611577,0.00019944,2]
[373247439,1752922278706,-587.04,0.00019944,2]
[373247440,1752922278717,-500.0,0.00019944,2]
[373247441,1752922278728,-2970.85,0.00019944,2]
[373247442,1752922278737,-480.0,0.00019945,2]
[373247443,1752922278747,-168.24419002,0.00019945,2]
[373247444,1752922278757,-480.0,0.00019945,2]
[373247445,1752922278767,-480.0,0.00019945,2]
[373247446,1752922278776,-398.58,0.00019945,2]
[373247447,1752922278786,-480.0,0.00019945,2]
[373247448,1752922278796,-480.0,0.00019945,2]
[373247449,1752922278806,-480.0,0.00019945,2]
[373247450,1752922278816,-480.0,0.00019945,2]
[373247451,1752922278826,-217.795832,0.00019945,2]
[373247452,1752922278835,-273.430536,0.00019945,2]
[373247453,1752922278845,-234.961977,0.00019945,2]
[373247454,1752922278855,-279.02771783,0.00019945,2]
[373247455,1752922278865,-480.0,0.00019945,2]
[373247456,1752922278874,-480.0,0.00019945,2]
[373247457,1752922278883,-480.0,0.00019945,2]
[373247458,1752922278893,-465.68,0.00019945,2]
[373247459,1752922278903,-349.94672418,0.00019945,2]
[373247460,1752922278913,-168.25289,0.00019945,2]
[373247461,1752922278923,-502.56,0.00019945,2]
[373247462,1752922278933,-158.408904,0.00019945,2]
[373247463,1752922278943,-150.812775,0.00019945,2]
[373247464,1752922278953,-440.94,0.00019945,2]
[373247465,1752922278963,-480.0,0.00019945,2]
[373247466,1752922278973,-605.49,0.00019945,2]
[373247467,1752922278984,-480.0,0.00019945,2]
[373247468,1752922278994,-1000.47,0.00019945,2]
[373247469,1752922279003,-1043.59,0.00019945,2]
[373247470,1752922279013,-604.26,0.00019945,2]
[373247471,1752922279022,-480.0,0.00019945,2]
[373247472,1752922279033,-480.0,0.00019945,2]
[373247473,1752922279043,-861.59,0.00019945,2]
[373247474,1752922279052,-848.57,0.00019945,2]
[373247475,1752922279063,-480.0,0.00019945,2]
[373247476,1752922279073,-511.8,0.00019945,2]
[373247477,1752922279084,-480.0,0.00019945,2]
[373247478,1752922279094,-687.69,0.00019945,2]
[373247479,1752922279104,-480.0,0.00019945,2]
[373247480,1752922279114,-3297.54,0.00019945,2]
[373247481,1752922279124,-1455.87,0.00019945,2]
[373247482,1752922279134,-495.02,0.00019945,2]
[373247483,1752922279144,-659.75,0.00019945,2]
[373247484,1752922279154,-1574.33,0.00019945,2]
[373247485,1752922279163,-385.78,0.00019945,2]
[373247486,1752922279173,-2169.2,0.00019945,2]
[373247487,1752922279182,-3376.92,0.00019945,2]
[373247488,1752922279192,-588.06,0.00019945,2]
[373247489,1752922279202,-300.31715405,0.00019945,2]
[373247490,1752922279212,-493.46,0.00019945,2]
[373247491,1752922279222,-576.04,0.00019945,2]
[373247492,1752922279232,-480.0,0.00019945,2]
[373247493,1752922279242,-480.0,0.00019945,2]
[373247494,1752922279252,-743.26,0.00019945,2]
[373247495,1752922279262,-1474.2,0.00019945,2]
[373247496,1752922279272,-2172.21,0.00019945,2]
[373247497,1752922279283,-480.0,0.00019945,2]
[373247498,1752922279293,-480.0,0.00019945,2]
[373247499,1752922279303,-1462.78,0.00019945,2]
[373247500,1752922279313,-480.0,0.00019945,2]
[373247501,1752922279322,-382.54,0.00019945,2]
[373247502,1752922279333,-513.05,0.00019945,2]
[373247503,1752922279344,-480.0,0.00019945,2]
[373247504,1752922279354,-480.0,0.00019945,2]
[373247505,1752922279364,-735.14,0.00019945,2]
[373247506,1752922279375,-787.17,0.00019945,2]
[373247507,1752922279385,-1284.12,0.00019945,2]
[373247508,1752922279395,-480.0,0.00019945,2]
[373247509,1752922279406,-1107.05,0.00019945,2]
[373247510,1752922279416,-480.0,0.00019945,2]
[373247511,1752922279426,-480.0,0.00019945,2]
[373247512,1752922279435,-2107.73,0.00019945,2]
[373247513,1752922279445,-480.0,0.00019945,2]
[373247514,1752922279455,-400.0,0.00019945,2]
[373247515,1752922279464,-1478.58,0.00019945,2]
[373247516,1752922279474,-602.58,0.00019945,2]
[373247517,1752922279487,-681.5,0.00019945,2]
[373247518,1752922279497,-2270.49,0.00019945,2]
[373247519,1752922279507,-480.0,0.00019945,2]
[373247520,1752922279517,-538.13,0.00019945,2]
[373247521,1752922279527,-1412.35,0.00019945,2]
[373247522,1752922279537,-480.0,0.00019945,2]
[373247523,1752922279547,-480.0,0.00019945,2]
[373247524,1752922279557,-1430.96,0.00019945,2]
[373247525,1752922279567,-480.0,0.00019945,2]
[373247526,1752922279577,-480.0,0.00019945,2]
[373247527,1752922279588,-1208.93,0.00019945,2]
[373247528,1752922279598,-480.0,0.00019945,2]
[373247529,1752922279607,-480.0,0.00019945,2]
[373247530,1752922279617,-548.17,0.00019945,2]
[373247531,1752922279627,-648.45,0.00019945,2]
[373247532,1752922279640,-3722.95,0.00019945,2]
[373247533,1752922279650,-484.42,0.00019945,2]
[373247534,1752922279660,-643.93,0.00019945,2]
[373247535,1752922279670,-519.96,0.00019945,2]
[373247536,1752922279682,-480.0,0.00019945,2]
[373247537,1752922279693,-1444.47,0.00019945,2]
[373247538,1752922279705,-716.2,0.00019945,2]
[373247539,1752922279714,-480.0,0.00019945,2]
[373247540,1752922279724,-480.0,0.00019945,2]
[373247541,1752922279734,-480.0,0.00019945,2]
[373247542,1752922279744,-1010.12,0.00019945,2]
[373247543,1752922279754,-480.0,0.00019945,2]
[373247544,1752922279764,-1134.71,0.00019945,2]
[373247545,1752922279774,-1001.22,0.00019945,2]
[373247546,1752922279785,-753.66,0.00019945,2]
[373247547,1752922279797,-480.0,0.00019945,2]
[373247548,1752922279806,-1926.46,0.00019945,2]
[373247549,1752922279817,-606.98,0.00019945,2]
[373247550,1752922279826,-480.0,0.00019945,2]
[373247551,1752922279836,-850.67,0.00019945,2]
[373247552,1752922279846,-14763.9,0.00019945,2]
[373247553,1752922279857,-504.26,0.00019945,2]
[373247554,1752922279866,-480.0,0.00019945,2]
[373247555,1752922279876,-207.9,0.00019945,2]
[373247556,1752922279887,-584.79,0.00019945,2]
[373247557,1752922279897,-2654.42,0.00019945,2]
[373247558,1752922279907,-3399.67,0.00019945,2]
[373247559,1752922279917,-603.57,0.00019945,2]
[373247560,1752922279926,-529.76,0.00019945,2]
[373247561,1752922279936,-480.0,0.00019945,2]
[373247562,1752922279945,-736.01,0.00019945,2]
[373247563,1752922279955,-528.72,0.00019945,2]
[373247564,1752922279966,-920.96,0.00019945,2]
[373247565,1752922279975,-582.63,0.00019945,2]
[373247566,1752922279986,-2078.75,0.00019945,2]
[373247567,1752922279996,-480.0,0.00019945,2]
[373247568,1752922280006,-480.0,0.00019945,2]
[373247569,1752922280016,-241.95,0.00019945,2]
[373247570,1752922280026,-684.13,0.00019945,2]
[373247571,1752922280035,-480.0,0.00019945,2]
[373247572,1752922280045,-1086.48,0.00019945,2]
[373247573,1752922280055,-480.0,0.00019945,2]
[373247574,1752922280066,-823.27,0.00019945,2]
[373247575,1752922280075,-601.91,0.00019945,2]
[373247576,1752922280085,-480.0,0.00019945,2]
[373247577,1752922280096,-2672.28,0.00019945,2]
[373247578,1752922280108,-480.0,0.00019945,2]
[373247579,1752922280117,-513.99,0.00019945,2]
[373247580,1752922280127,-616.88,0.00019945,2]
[373247581,1752922280137,-1044.3,0.00019945,2]
[373247582,1752922280148,-480.0,0.00019945,2]
[373247583,1752922280158,-574.67,0.00019945,2]
[373247584,1752922280169,-480.0,0.00019945,2]
[373247585,1752922280179,-813.79,0.00019945,2]
[373247586,1752922280189,-480.0,0.00019945,2]
[373247587,1752922280200,-480.0,0.00019945,2]
[373247588,1752922280209,-480.0,0.00019945,2]
[373247589,1752922280219,-1310.77,0.00019945,2]
[373247590,1752922280230,-858.48,0.00019945,2]
[373247591,1752922280240,-3431.57,0.00019945,2]
[373247592,1752922280249,-480.0,0.00019945,2]
[373247593,1752922280259,-480.0,0.00019945,2]
[373247594,1752922280269,-480.0,0.00019945,2]
[373247595,1752922280279,-307.87,0.00019945,2]
[373247596,1752922280289,-497.93,0.00019945,2]
[373247597,1752922280299,-1367.34,0.00019945,2]
[373247598,1752922280308,-1524.22,0.00019945,2]
[373247599,1752922280319,-480.0,0.00019945,2]
[373247600,1752922280329,-480.0,0.00019945,2]
[373247601,1752922280339,-480.0,0.00019945,2]
[373247602,1752922280349,-5259.12,0.00019945,2]
[373247603,1752922280359,-480.0,0.00019945,2]
[373247604,1752922280369,-480.0,0.00019945,2]
[373247605,1752922280379,-164.57,0.00019967,2]
[373247606,1752922280390,-152.87,0.00019981,2]
[373247607,1752922280400,-993.08884142,0.0002,2]
[373247608,1752922280410,-4000.0,0.0002,4]
[373247609,1752922280419,-1687.77813,0.0002002,2]
[373247610,1752922280429,-173.0,0.0002005,2]
[373247611,1752922280439,-315.23438012,0.00020053,2]
[373247612,1752922280449,-735.7,0.00020053,2]
[373247613,1752922280459,-480.0,0.00020053,2]
[373247614,1752922280469,-480.0,0.00020053,2]
[373247615,1752922280479,-480.0,0.00020053,2]
[373247616,1752922280489,-3279.57,0.00020053,2]
[373247617,1752922280499,-480.0,0.00020053,2]
[373247618,1752922280509,-480.0,0.00020053,2]
[373247619,1752922280518,-500.0,0.00020053,2]
[373247620,1752922280528,-587.04,0.00020053,2]
[373247621,1752922280538,-2970.85,0.00020053,2]
[373247622,1752922280549,-384.71995462,0.00020054,2]
[373247623,1752922280558,-480.0,0.00020054,2]
[373247624,1752922280569,-480.0,0.00020054,2]
[373247625,1752922280579,-342.02,0.00020054,2]
[373247626,1752922280588,-236.5,0.00020054,2]
[373247627,1752922280598,-480.0,0.00020054,2]
[373247628,1752922280608,-307.16535569,0.00020054,2]
[373247629,1752922280617,-480.0,0.00020054,2]
[373247630,1752922280627,-480.0,0.00020054,2]
[373247631,1752922280640,-480.0,0.00020054,2]
[373247632,1752922280650,-480.0,0.00020054,2]
[373247633,1752922280660,-605.49,0.00020054,2]
[373247634,1752922280671,-372.3,0.00020054,2]
[373247635,1752922280681,-1000.47,0.00020054,2]
[373247636,1752922280690,-1043.59,0.00020054,2]
[373247637,1752922280700,-604.26,0.00020054,2]
[373247638,1752922280710,-480.0,0.00020054,2]
[373247639,1752922280720,-480.0,0.00020054,2]
[373247640,1752922280730,-861.59,0.00020054,2]
[373247641,1752922280740,-848.57,0.00020054,2]
[373247642,1752922280750,-438.29,0.00020054,2]
[373247643,1752922280762,-511.8,0.00020054,2]
[373247644,1752922280772,-480.0,0.00020054,2]
[373247645,1752922280783,-687.69,0.00020054,2]
[373247646,1752922280794,-480.0,0.00020054,2]
[373247647,1752922280804,-3297.54,0.00020054,2]
[373247648,1752922280890,-1455.87,0.00020054,2]
[373247649,1752922280901,-495.02,0.00020054,2]
[373247650,1752922280911,-659.75,0.00020054,2]
[373247651,1752922280921,-1574.33,0.00020054,2]
[373247652,1752922280931,-2169.2,0.00020054,2]
[373247653,1752922280941,-3376.92,0.00020054,2]
[373247654,1752922280950,-588.06,0.00020054,2]
[373247655,1752922280960,-493.46,0.00020054,2]
[373247656,1752922280970,-576.04,0.00020054,2]
[373247657,1752922280979,-480.0,0.00020054,2]
[373247658,1752922280989,-480.0,0.00020054,2]
[373247659,1752922280999,-743.26,0.00020054,2]
[373247660,1752922281008,-1474.2,0.00020054,2]
[373247661,1752922281018,-2172.21,0.00020054,2]
[373247662,1752922281027,-480.0,0.00020054,2]
[373247663,1752922281037,-480.0,0.00020054,2]
[373247664,1752922281047,-480.0,0.00020054,2]
[373247665,1752922281057,-513.05,0.00020054,2]
[373247666,1752922281067,-1462.78,0.00020054,2]
[373247667,1752922281077,-480.0,0.00020054,2]
[373247668,1752922281087,-480.0,0.00020054,2]
[373247669,1752922281097,-735.14,0.00020054,2]
[373247670,1752922281106,-787.17,0.00020054,2]
[373247671,1752922281115,-1284.12,0.00020054,2]
[373247672,1752922281124,-480.0,0.00020054,2]
[373247673,1752922281134,-1107.05,0.00020054,2]
[373247674,1752922281143,-480.0,0.00020054,2]
[373247675,1752922281153,-480.0,0.00020054,2]
[373247676,1752922281162,-2107.73,0.00020054,2]
[373247677,1752922281172,-480.0,0.00020054,2]
[373247678,1752922281181,-1478.58,0.00020054,2]
[373247679,1752922281190,-681.5,0.00020054,2]
[373247680,1752922281200,-2270.49,0.00020054,2]
[373247681,1752922281209,-480.0,0.00020054,2]
[373247682,1752922281219,-538.13,0.00020054,2]
[373247683,1752922281229,-1412.35,0.00020054,2]
[373247684,1752922281239,-480.0,0.00020054,2]
[373247685,1752922281249,-307.0,0.00020054,2]
[373247686,1752922281258,-1430.96,0.00020054,2]
[373247687,1752922281267,-480.0,0.00020054,2]
[373247688,1752922281277,-480.0,0.00020054,2]
[373247689,1752922281287,-1208.93,0.00020054,2]
[373247690,1752922281296,-480.0,0.00020054,2]
[373247691,1752922281306,-395.52,0.00020054,2]
[373247692,1752922281316,-548.17,0.00020054,2]
[373247693,1752922281326,-648.45,0.00020054,2]
[373247694,1752922281335,-3722.95,0.00020054,2]
[373247695,1752922281345,-484.42,0.00020054,2]
[373247696,1752922281354,-643.93,0.00020054,2]
[373247697,1752922281364,-519.96,0.00020054,2]
[373247698,1752922281373,-480.0,0.00020054,2]
[373247699,1752922281383,-1444.47,0.00020054,2]
[373247700,1752922281392,-716.2,0.00020054,2]
[373247701,1752922281401,-480.0,0.00020054,2]
[373247702,1752922281411,-480.0,0.00020054,2]
[373247703,1752922281421,-240.5,0.00020054,2]
[373247704,1752922281431,-1010.12,0.00020054,2]
[373247705,1752922281441,-180.49,0.00020054,2]
[373247706,1752922281451,-1134.71,0.00020054,2]
[373247707,1752922281461,-1001.22,0.00020054,2]
[373247708,1752922281470,-753.66,0.00020054,2]
[373247709,1752922281480,-524.08737062,0.00020054,2]
[373247710,1752922281489,-1926.46,0.00020054,2]
[373247711,1752922281499,-480.0,0.00020054,2]
[373247712,1752922281508,-850.67,0.00020054,2]
[373247713,1752922281517,-14763.9,0.00020054,2]
[373247714,1752922281526,-504.26,0.00020054,2]
[373247715,1752922281536,-480.0,0.00020054,2]
[373247716,1752922281545,-584.79,0.00020054,2]
[373247717,1752922281555,-2654.42,0.00020054,2]
[373247718,1752922281565,-3399.67,0.00020054,2]
[373247719,1752922281575,-603.57,0.00020054,2]
[373247720,1752922281584,-480.0,0.00020054,2]
[373247721,1752922281593,-736.01,0.00020054,2]
[373247722,1752922281602,-528.72,0.00020054,2]
[373247723,1752922281612,-920.96,0.00020054,2]
[373247724,1752922281621,-582.63,0.00020054,2]
[373247725,1752922281633,-2078.75,0.00020054,2]
[373247726,1752922281643,-480.0,0.00020054,2]
[373247727,1752922281652,-480.0,0.00020054,2]
[373247728,1752922281662,-684.13,0.00020054,2]
[373247729,1752922281671,-480.0,0.00020054,2]
[373247730,1752922281681,-1086.48,0.00020054,2]
[373247731,1752922281690,-480.0,0.00020054,2]
[373247732,1752922281700,-823.27,0.00020054,2]
[373247733,1752922281711,-601.91,0.00020054,2]
[373247734,1752922281721,-480.0,0.00020054,2]
[373247735,1752922281730,-2672.28,0.00020054,2]
[373247736,1752922281739,-480.0,0.00020054,2]
[373247737,1752922281748,-513.99,0.00020054,2]
[373247738,1752922281758,-616.88,0.00020054,2]
[373247739,1752922281767,-1044.3,0.00020054,2]
[373247740,1752922281777,-480.0,0.00020054,2]
[373247741,1752922281786,-574.67,0.00020054,2]
[373247742,1752922281796,-480.0,0.00020054,2]
[373247743,1752922281806,-813.79,0.00020054,2]
[373247744,1752922281815,-480.0,0.00020054,2]
[373247745,1752922281825,-480.0,0.00020054,2]
[373247746,1752922281834,-480.0,0.00020054,2]
[373247747,1752922281844,-1310.77,0.00020054,2]
[373247748,1752922281853,-858.48,0.00020054,2]
[373247749,1752922281863,-3431.57,0.00020054,2]
[373247750,1752922281872,-480.0,0.00020054,2]
[373247751,1752922281882,-480.0,0.00020054,2]
[373247752,1752922281891,-480.0,0.00020054,2]
[373247753,1752922281900,-497.93,0.00020054,2]
[373247754,1752922281909,-1367.34,0.00020054,2]
[373247755,1752922281919,-1524.22,0.00020054,2]
[373247756,1752922281928,-480.0,0.00020054,2]
[373247757,1752922281937,-480.0,0.00020054,2]
[373247758,1752922281947,-480.0,0.00020054,2]
[373247759,1752922281957,-5259.12,0.00020054,2]
[373247760,1752922281966,-480.0,0.00020054,2]
[373247761,1752922281975,-480.0,0.00020054,2]
[373247762,1752922281984,-1000.0,0.00020064,2]
[373247763,1752922281994,-4094.9891,0.00020064,2]
[373247764,1752922282003,-476.80070012,0.00020064,2]
[373247765,1752922282013,-210.82967408,0.00020064,2]
[373247766,1752922282023,-160.0,0.00020064,2]
[373247767,1752922282032,-839.16344753,0.00020064,2]
[373247768,1752922282042,-152.85713356,0.00020101,2]
[373247769,1752922282051,-600.0,0.0002011,2]
[373247770,1752922282060,-548.0,0.00020137,2]
[373247771,1752922282070,-500.0,0.00020144,2]
[373247772,1752922282080,-4458.4,0.00020145,2]
[373247773,1752922282089,-150.99,0.00020145,2]
[373247774,1752922282099,-9999.99,0.00020145,2]
[373247775,1752922282108,-9999.99,0.00020145,2]
[373247776,1752922282118,-155506.41,0.00020145,2]
[373247777,1752922282127,-13188.86,0.00020145,2]
[373247778,1752922282136,-300.83,0.00020145,2]
[373247779,1752922282146,-999.99,0.00020145,2]
[373247780,1752922282156,-150.99,0.00020145,2]
[373247781,1752922282165,-324.81,0.00020145,2]
[373247782,1752922282174,-9999.99,0.00020145,2]
[373247783,1752922282184,-931.48,0.00020145,2]
[373247784,1752922282194,-1423.54,0.00020145,2]
[373247785,1752922282204,-3422.5,0.00020145,5]
[373247786,1752922282213,-3085.19,0.00020145,2]
[373247787,1752922282223,-587.04,0.00020162,2]
[373247788,1752922282232,-2970.85,0.00020162,2]
[373247789,1752922282243,-232.75232686,0.00020163,2]
[373247790,1752922282253,-735.7,0.00020163,2]
[373247791,1752922282262,-480.0,0.00020163,2]
[373247792,1752922282272,-480.0,0.00020163,2]
[373247793,1752922282281,-480.0,0.00020163,2]
[373247794,1752922282291,-3279.57,0.00020163,2]
[373247795,1752922282300,-480.0,0.00020163,2]
[373247796,1752922282310,-480.0,0.00020163,2]
[373247797,1752922282321,-500.0,0.00020163,2]
[373247798,1752922282330,-459.02,0.00020164,2]
[373247799,1752922282339,-480.0,0.00020164,2]
[373247800,1752922282348,-480.0,0.00020164,2]
[373247801,1752922282358,-296.11,0.00020164,2]
[373247802,1752922282368,-230.14058299,0.00020164,2]
[373247803,1752922282378,-480.0,0.00020164,2]
[373247804,1752922282387,-480.0,0.00020164,2]
[373247805,1752922282396,-605.49,0.00020164,2]
[373247806,1752922282406,-1000.47,0.00020164,2]
[373247807,1752922282415,-1043.59,0.00020164,2]
[373247808,1752922282425,-604.26,0.00020164,2]
[373247809,1752922282434,-480.0,0.00020164,2]
[373247810,1752922282443,-480.0,0.00020164,2]
[373247811,1752922282452,-861.59,0.00020164,2]
[373247812,1752922282462,-848.57,0.00020164,2]
[373247813,1752922282472,-511.8,0.00020164,2]
[373247814,1752922282481,-480.0,0.00020164,2]
[373247815,1752922282491,-687.69,0.00020164,2]
[373247816,1752922282501,-480.0,0.00020164,2]
[373247817,1752922282511,-3297.54,0.00020164,2]
[373247818,1752922282520,-1455.87,0.00020164,2]
[373247819,1752922282530,-495.02,0.00020164,2]
[373247820,1752922282539,-659.75,0.00020164,2]
[373247821,1752922282550,-1574.33,0.00020164,2]
[373247822,1752922282558,-2169.2,0.00020164,2]
[373247823,1752922282568,-3376.92,0.00020164,2]
[373247824,1752922282577,-588.06,0.00020164,2]
[373247825,1752922282586,-493.46,0.00020164,2]
[373247826,1752922282597,-576.04,0.00020164,2]
[373247827,1752922282606,-480.0,0.00020164,2]
[373247828,1752922282615,-743.26,0.00020164,2]
[373247829,1752922282624,-480.0,0.00020164,2]
[373247830,1752922282640,-1474.2,0.00020164,2]
[373247831,1752922282652,-2172.21,0.00020164,2]
[373247832,1752922282662,-480.0,0.00020164,2]
[373247833,1752922282672,-480.0,0.00020164,2]
[373247834,1752922282683,-441.62933474,0.00020164,2]
[373247835,1752922282692,-513.05,0.00020164,2]
[373247836,1752922282702,-1462.78,0.00020164,2]
[373247837,1752922282713,-480.0,0.00020164,2]
[373247838,1752922282723,-480.0,0.00020164,2]
[373247839,1752922282734,-735.14,0.00020164,2]
[373247840,1752922282746,-787.17,0.00020164,2]
[373247841,1752922282755,-1284.12,0.00020164,2]
[373247842,1752922282767,-480.0,0.00020164,2]
[373247843,1752922282777,-1107.05,0.00020164,2]
[373247844,1752922282786,-480.0,0.00020164,2]
[373247845,1752922282796,-480.0,0.00020164,2]
[373247846,1752922282805,-2107.73,0.00020164,2]
[373247847,1752922282815,-480.0,0.00020164,2]
[373247848,1752922282825,-1478.58,0.00020164,2]
[373247849,1752922282834,-681.5,0.00020164,2]
[373247850,1752922282843,-2270.49,0.00020164,2]
[373247851,1752922282855,-576.72,0.00020164,2]
[373247852,1752922282865,-538.13,0.00020164,2]
[373247853,1752922282875,-1412.35,0.00020164,2]
[373247854,1752922282884,-480.0,0.00020164,2]
[373247855,1752922282895,-1430.96,0.00020164,2]
[373247856,1752922282904,-480.0,0.00020164,2]
[373247857,1752922282914,-480.0,0.00020164,2]
[373247858,1752922282923,-1208.93,0.00020164,2]
[373247859,1752922282933,-480.0,0.00020164,2]
[373247860,1752922282943,-548.17,0.00020164,2]
[373247861,1752922282953,-648.45,0.00020164,2]
[373247862,1752922282964,-3722.95,0.00020164,2]
[373247863,1752922282973,-484.42,0.00020164,2]
[373247864,1752922282983,-643.93,0.00020164,2]
[373247865,1752922282993,-519.96,0.00020164,2]
[373247866,1752922283004,-440.0,0.00020164,2]
[373247867,1752922283013,-1444.47,0.00020164,2]
[373247868,1752922283023,-716.2,0.00020164,2]
[373247869,1752922283033,-480.0,0.00020164,2]
[373247870,1752922283043,-480.0,0.00020164,2]
[373247871,1752922283052,-1010.12,0.00020164,2]
[373247872,1752922283062,-1134.71,0.00020164,2]
[373247873,1752922283071,-1001.22,0.00020164,2]
[373247874,1752922283081,-753.66,0.00020164,2]
[373247875,1752922283091,-1926.46,0.00020164,2]
[373247876,1752922283100,-480.0,0.00020164,2]
[373247877,1752922283110,-14763.9,0.00020164,2]
[373247878,1752922283119,-850.67,0.00020164,2]
[373247879,1752922283129,-504.26,0.00020164,2]
[373247880,1752922283138,-480.0,0.00020164,2]
[373247881,1752922283147,-584.79,0.00020164,2]
[373247882,1752922283157,-2654.42,0.00020164,2]
[373247883,1752922283167,-3399.67,0.00020164,2]
[373247884,1752922283176,-603.57,0.00020164,2]
[373247885,1752922283185,-480.0,0.00020164,2]
[373247886,1752922283195,-736.01,0.00020164,2]
[373247887,1752922283205,-528.72,0.00020164,2]
[373247888,1752922283214,-920.96,0.00020164,2]
[373247889,1752922283223,-582.63,0.00020164,2]
[373247890,1752922283233,-2078.75,0.00020164,2]
[373247891,1752922283242,-480.0,0.00020164,2]
[373247892,1752922283252,-480.0,0.00020164,2]
[373247893,1752922283261,-684.13,0.00020164,2]